bitfinex/quotes_ETHUSD_20240824
["timestamp","ask_amount","ask_price","bid_price","bid_amount"]
[1724471924372,2.291,2752.0,2751.7,3.63402]
[1724471925089,2.4379,2752.2,2751.9,3.63384]
[1724471925727,2.4379,2752.2,2751.8,3.63397]
[1724471927124,2.4379,2752.2,2751.7,8.03482032]
[1724471927282,2.4379,2752.2,2751.8,3.63397]
[1724471928935,2.4379,2752.2,2751.9,3.63383]
[1724471929435,2.4379,2752.2,2751.9,7.26758]
[1724471929632,2.4379,2752.2,2752.1,3.63358]
[1724471929793,2.4379,2752.4,2752.1,3.63358]
[1724471930835,2.4379,2752.4,2751.9,3.63373]
[1724471931029,5.4379,2752.4,2751.9,3.63373]
[1724471932285,5.4379,2752.4,2752.0,3.63371]
[1724471933425,2.4379,2752.4,2752.1,3.63355]
[1724471935508,2.4379,2752.4,2752.1,4.360278]
[1724471935693,2.4379,2752.4,2752.1,3.63355]
[1724471936434,2.4379,2752.4,2752.1,3.63347]
[1724471937306,6.07117,2752.4,2751.8,3.63389]
[1724471937520,2.4379,2752.3,2751.8,3.63389]
[1724471939745,2.4379,2752.3,2751.8,3.63387]
[1724471940047,2.4379,2752.3,2751.8,4.07393803]
[1724471940253,2.4379,2752.3,2751.9,3.63379]
[1724471940447,2.4379,2752.3,2751.6,3.63416]
[1724471940860,2.4379,2752.3,2751.8,3.63396]
[1724471942435,3.63354,2752.2,2751.6,3.63416]
[1724471942643,3.63354,2752.2,2750.8,3.63522]
[1724471942644,3.63433,2751.6,2750.8,3.63522]
[1724471942838,6.03698,2751.5,2751.0,3.63501]
[1724471943187,2.4026,2751.4,2750.8,3.63521]
[1724471943367,5.4026,2751.4,2750.8,3.63521]
[1724471943680,5.4026,2751.4,2750.9,3.63516]
[1724471943838,5.4026,2751.4,2751.0,3.63503]
[1724471944934,2.4026,2751.4,2751.0,3.63503]
[1724471945272,2.4026,2751.4,2751.0,3.998533]
[1724471946239,2.4026,2751.4,2751.2,3.63475]
[1724471946850,3.0,2751.6,2751.2,3.63475]
[1724471947055,2.4026,2751.7,2751.2,3.63475]
[1724471948396,2.4026,2751.7,2751.4,3.63448]
[1724471951233,2.4026,2751.9,2751.5,3.63426]
[1724471951808,2.4026,2751.9,2751.4,4.3614]
[1724471952196,2.4026,2751.9,2751.4,3.63448]
[1724471953736,2.4026,2751.9,2751.4,7.2689]
[1724471954045,2.4026,2751.9,2751.4,3.63442]
[1724471955341,2.4026,2751.9,2751.4,7.26884]
[1724471956615,2.4026,2751.9,2751.4,3.63442]
[1724471958535,2.4026,2751.9,2751.4,7.26885]
[1724471959090,3.0,2752.0,2751.4,0.726885]
[1724471959287,7.45,2752.1,2751.8,3.63388]
[1724471959288,9.7037,2752.1,2751.8,3.63388]
[1724471961840,7.45,2752.1,2751.8,3.63388]
[1724471962022,7.45,2752.1,2752.0,3.63372]
[1724471962343,2.2537,2752.3,2751.7,7.26805]
[1724471962490,2.2537,2752.3,2751.8,0.726805]
[1724471962689,2.2537,2752.3,2751.8,4.360765]
[1724471964241,2.2537,2752.3,2751.9,3.63374]
[1724471966518,2.2537,2752.3,2751.9,7.26751]
[1724471966721,2.2537,2752.3,2751.9,3.63374]
[1724471967538,2.2537,2752.3,2751.9,7.26749]
[1724471968409,5.2537,2752.5,2752.1,3.6335]
[1724471968621,5.2537,2752.5,2752.3,3.63332]
[1724471968964,5.2537,2752.5,2752.2,3.63344]
[1724471969508,5.2537,2752.5,2751.9,4.360519]
[1724471969509,5.2537,2752.5,2751.9,3.63377]
[1724471969711,8.88677,2752.5,2751.9,7.26751]
[1724471971409,8.88677,2752.5,2751.9,7.26749]
[1724471972200,5.2537,2752.5,2752.1,3.63358]
[1724471979760,5.63155133,2752.5,2752.1,3.63358]
[1724471984795,5.63155133,2752.5,2751.9,7.26748]
[1724471985097,5.63155133,2752.5,2751.9,3.63374]
[1724471986282,2.3885,2752.4,2751.9,3.63374]
[1724471989958,2.3885,2752.4,2752.0,3.63371]
[1724471991462,2.3885,2752.4,2752.0,4.360455]
[1724471992289,2.3885,2752.4,2752.0,3.63371]
[1724472000338,2.3885,2752.4,2751.8,7.26783]
[1724472000692,2.3885,2752.4,2751.9,3.63382]
[1724472001423,2.3726,2752.3,2751.8,3.63386]
[1724472001663,2.3726,2752.2,2751.6,3.63415]
[1724472001833,2.3726,2752.2,2751.6,7.995178]
[1724472001976,2.3726,2752.2,2751.6,4.361008]
[1724472002182,2.3726,2752.2,2751.6,7.995178]
[1724472002382,2.3726,2752.1,2751.6,3.63415]
[1724472002585,2.3726,2752.1,2751.4,3.63443]
[1724472002586,2.3726,2752.0,2751.4,3.63443]
[1724472002780,3.63447,2751.5,2751.2,0.76137514]
[1724472003025,3.63447,2751.5,2750.9,3.63514]
[1724472003026,2.3726,2751.5,2750.9,3.63514]
[1724472003375,2.3726,2751.5,2751.0,3.63502]
[1724472003611,5.3726,2751.5,2751.0,4.362043]
[1724472003835,5.3726,2751.5,2751.0,7.997063]
[1724472004125,2.3726,2751.5,2751.1,3.63489]
[1724472004829,2.3726,2751.5,2751.0,4.362043]
[1724472005455,2.3726,2751.5,2751.0,7.997003]
[1724472005582,2.3726,2751.5,2751.0,4.361983]
[1724472008026,2.3726,2751.5,2751.0,3.63496]
[1724472008522,2.3726,2751.5,2751.1,3.63489]
[1724472009189,2.3726,2751.5,2751.0,3.63496]
[1724472011130,10.10331756,2752.4,2751.4,3.63451]
[1724472011131,2.327,2752.0,2751.4,3.63451]
[1724472011432,2.327,2752.0,2751.6,3.63423]
[1724472013955,2.327,2752.0,2751.4,7.26892]
[1724472014157,2.327,2752.0,2751.5,3.63434]
[1724472015567,2.327,2752.0,2751.6,3.63422]
[1724472015708,2.327,2752.0,2751.6,3.63416]
[1724472017363,2.327,2752.0,2751.4,3.63444]
[1724472017722,2.327,2752.0,2751.4,7.26886]
[1724472017917,2.327,2752.0,2751.5,0.726886]
[1724472018347,2.327,2752.0,2751.5,4.361246]
[1724472019356,2.327,2752.0,2751.6,3.63421]
[1724472020228,2.327,2752.0,2751.5,0.726886]
[1724472020429,3.0,2752.3,2751.1,3.63486]
[1724472020430,2.4326,2752.2,2751.4,2.3348]
[1724472020632,2.4326,2752.2,2751.9,3.63385]
[1724472023076,2.4326,2752.2,2752.0,3.63371]
[1724472023441,9.8826,2752.4,2752.0,3.63371]
[1724472023770,2.4326,2752.4,2751.8,2.3348]
[1724472023942,2.4326,2752.4,2752.1,3.6335]
[1724472024524,2.4326,2752.4,2751.9,3.63377]
[1724472027850,2.4326,2752.4,2751.9,7.26752]
[1724472028467,2.4326,2752.4,2751.9,3.63376]
[1724472029567,2.4326,2752.4,2752.0,3.63361]
[1724472029886,3.0,2752.5,2752.0,0.726737]
[1724472030039,2.3119,2752.6,2752.3,3.63324]
[1724472030938,2.3119,2752.6,2752.1,3.63353]
[1724472030939,1.62144284,2752.6,2752.1,7.267]
[1724472032591,1.62144284,2752.6,2752.1,3.63347]
[1724472033569,3.63294,2752.6,2751.9,3.63376]
[1724472033897,3.0,2752.7,2751.2,2.2569]
[1724472033898,3.63354,2752.2,2751.2,2.2569]
[1724472034048,3.63374,2752.0,2751.3,0.22569]
[1724472034647,5.3119,2752.1,2751.5,3.63436]
[1724472037444,5.3119,2752.1,2751.5,3.6343]
[1724472040532,5.3119,2752.1,2751.7,3.63404]
[1724472041205,5.3119,2752.1,2751.7,7.26805]
[1724472041552,5.3119,2752.1,2751.7,3.63402]
[1724472041719,5.3119,2752.1,2751.8,3.63396]
[1724472041918,2.3597,2752.3,2751.9,3.63383]
[1724472042654,2.3597,2752.3,2751.9,3.63378]
[1724472042952,2.3597,2752.3,2751.9,3.63376]
[1724472043162,2.3597,2752.3,2752.0,0.363376]
[1724472045627,22.0197,2752.5,2752.0,0.363376]
[1724472045850,2.3597,2752.5,2752.1,3.6335]
[1724472047634,2.3597,2752.5,2752.1,3.63349]
[1724472047956,2.3597,2752.5,2752.2,4.0331366]
[1724472048262,2.3597,2752.6,2752.4,3.63318]
[1724472049859,2.3597,2752.6,2752.2,0.3996866]
[1724472050044,2.3597,2752.6,2752.1,3.63351]
[1724472052181,2.3597,2752.6,2752.2,3.63344]
[1724472052341,2.3597,2752.6,2752.4,3.63317]
[1724472052541,9.8097,2752.8,2752.4,3.63317]
[1724472053066,9.8097,2752.8,2752.3,3.63328]
[1724472053268,9.8097,2752.8,2752.3,4.594529]
[1724472053897,2.3597,2752.7,2752.1,3.63351]
[1724472054200,2.3597,2752.3,2751.5,3.63431]
[1724472054494,10.51281627,2752.8,2751.5,3.63428]
[1724472054495,2.3597,2752.0,2751.5,3.63428]
[1724472055064,2.3597,2752.0,2751.6,3.63423]
[1724472055590,2.3597,2752.0,2751.7,3.6341]
[1724472055802,3.0,2752.2,2751.9,3.63385]
[1724472056089,5.3597,2752.3,2751.9,3.63385]
[1724472056558,5.3597,2752.3,2751.7,7.26806]
[1724472056745,5.3597,2752.3,2751.8,0.726806]
[1724472057394,5.3597,2752.3,2751.8,4.360736]
[1724472058577,2.3597,2752.3,2751.9,3.63381]
[1724472062610,2.3597,2752.3,2751.9,7.26758]
[1724472062776,2.3597,2752.3,2751.9,3.63377]
[1724472062978,2.3597,2752.3,2752.0,0.4360576]
[1724472063292,7.45,2752.4,2752.1,3.63351]
[1724472063493,5.3566,2752.6,2752.1,3.63351]
[1724472064120,2.3566,2752.6,2752.1,3.63351]
[1724472069473,2.3566,2752.6,2752.1,3.63351]
[1724472069681,2.3566,2752.6,2752.1,7.26702]
[1724472069922,2.3566,2752.6,2752.2,0.77030776]
[1724472071326,2.3566,2752.6,2752.2,4.40373776]
[1724472072024,2.3566,2752.6,2752.2,0.77030776]
[1724472073398,2.3566,2752.6,2752.2,4.40373776]
[1724472074242,9.8746,2752.8,2752.3,3.63331]
[1724472074994,13.50728,2752.8,2752.3,3.63331]
[1724472075196,2.4246,2752.6,2752.1,3.63346]
[1724472078048,2.4246,2752.6,2752.2,3.63345]
[1724472079708,9.802,2752.8,2751.9,2.3147]
[1724472079925,9.802,2752.8,2752.4,3.63311]
[1724472081450,9.802,2752.8,2752.4,3.6331]
[1724472084620,2.352,2752.8,2752.4,3.6331]
[1724472084971,2.352,2752.8,2752.5,3.63297]
[1724472085174,5.352,2753.0,2752.6,3.63284]
[1724472085391,2.352,2753.0,2752.7,0.363284]
[1724472086482,2.352,2753.0,2752.7,3.996054]
[1724472086643,5.352,2753.3,2752.8,3.63258]
[1724472086831,5.352,2753.3,2752.9,3.63243]
[1724472087029,5.98414,2753.2,2752.7,0.363284]
[1724472087273,2.352,2753.0,2752.4,7.26626]
[1724472087484,2.352,2753.0,2752.5,0.726626]
[1724472088030,2.352,2752.9,2752.1,3.63356]
[1724472088410,5.98474,2752.8,2752.2,3.63345]
[1724472088578,5.98474,2752.8,2752.2,7.26682]
[1724472089061,5.98474,2752.8,2752.3,3.6333]
[1724472089857,5.352,2753.0,2752.5,3.63298]
[1724472090073,2.352,2753.0,2752.6,3.996138]
[1724472090589,3.0,2753.1,2752.7,3.63278]
[1724472090885,2.31748404,2753.2,2752.7,3.63278]
[1724472091087,5.31748404,2753.2,2752.7,3.63278]
[1724472091398,3.0,2753.2,2752.9,6.12162]
[1724472091551,3.0,2753.3,2753.0,0.612162]
[1724472092087,3.0,2753.3,2752.8,3.63265]
[1724472092830,3.0,2753.3,2752.9,3.63252]
[1724472093041,0.026,2753.5,2753.2,3.63207]
[1724472093681,0.026,2753.5,2753.0,3.63229]
[1724472093946,2.378,2753.5,2753.0,3.63229]
[1724472094090,2.378,2753.5,2753.1,0.363229]
[1724472094430,2.378,2753.5,2753.1,3.995479]
[1724472095518,2.378,2753.5,2752.7,3.63268]
[1724472095680,2.352,2752.9,2752.2,3.63335]
[1724472096140,2.352,2752.9,2752.4,3.63318]
[1724472096431,2.352,2752.9,2752.3,3.63332]
[1724472097026,2.352,2752.9,2752.4,3.63313]
[1724472097329,2.352,2752.9,2752.5,0.363313]
[1724472098378,2.352,2752.9,2752.6,3.63291]
[1724472099119,7.45,2753.1,2752.5,0.363313]
[1724472099326,2.3551,2753.2,2752.8,3.63256]
[1724472100161,0.026,2753.5,2753.2,3.63212]
[1724472100300,0.026,2753.5,2753.0,3.63238]
[1724472100498,0.026,2753.5,2753.1,0.363238]
[1724472101320,0.026,2753.5,2752.8,3.63262]
[1724472101551,0.026,2753.5,2752.5,3.996253]
[1724472101552,2.3551,2753.3,2752.5,3.996253]
[1724472101725,3.63219,2753.2,2752.3,5.9518]
[1724472101927,3.63249,2753.0,2752.3,5.9518]
[1724472102132,3.63249,2753.0,2752.3,5.95171]
[1724472102331,3.63249,2753.0,2752.4,4.228341]
[1724472102535,3.63219,2753.2,2752.5,3.63304]
[1724472102728,3.63227,2753.1,2752.5,3.63304]
[1724472103475,2.3551,2753.1,2752.6,3.63286]
[1724472103649,2.3551,2753.1,2752.7,3.63276]
[1724472103833,2.3551,2753.4,2752.9,3.63241]
[1724472104167,3.026,2753.5,2752.9,3.63241]
[1724472104463,0.026,2753.5,2752.9,3.63241]
[1724472105419,0.026,2753.5,2753.1,3.63219]
[1724472105619,0.026,2753.5,2753.2,3.6321]
[1724472105819,0.026,2753.5,2753.2,4.358526]
[1724472106076,0.026,2753.5,2753.2,0.726426]
[1724472107070,0.026,2753.5,2753.3,3.63188]
[1724472107763,0.026,2753.5,2753.4,3.63187]
[1724472108737,0.026,2753.5,2753.4,7.26374]
[1724472108940,0.026,2753.5,2753.4,4.4308866]
[1724472109227,0.026,2753.5,2753.2,0.726426]
[1724472109427,2.3551,2753.4,2752.6,7.26563]
[1724472109757,3.63208,2753.3,2752.6,3.63279]
[1724472109939,3.63208,2753.3,2752.7,3.63277]
[1724472110350,2.3551,2753.4,2752.8,3.63264]
[1724472110550,2.3551,2753.4,2752.8,4.359183]
[1724472110770,2.3551,2753.4,2752.2,3.63341]
[1724472110771,2.3551,2753.4,2753.1,3.63218]
[1724472111074,2.3551,2753.4,2752.8,7.26521]
[1724472111367,2.3551,2753.4,2752.9,3.63249]
[1724472112474,3.65778,2753.5,2753.0,3.63237]
[1724472112475,0.026,2753.5,2753.0,3.63237]
[1724472112678,0.026,2753.5,2753.1,0.595087]
[1724472112827,0.026,2753.5,2753.0,3.6323]
[1724472114265,0.026,2753.5,2753.1,3.63218]
[1724472115673,0.026,2753.5,2753.0,3.6323]
[1724472117176,0.026,2753.5,2752.8,3.6326]
[1724472117177,3.63239,2753.1,2752.4,2.3185]
[1724472117477,2.3551,2753.0,2752.5,0.23185]
[1724472117826,2.3551,2753.0,2752.2,3.63338]
[1724472118181,2.3551,2753.0,2751.8,3.63397]
[1724472118182,3.63319,2752.4,2751.8,3.63397]
[1724472118528,2.3347,2752.5,2751.8,7.26783]
[1724472118728,5.3347,2752.5,2751.8,7.26783]
[1724472119160,5.3347,2752.5,2751.9,3.63384]
[1724472121075,5.3347,2752.5,2752.0,3.63359]
[1724472121287,2.3347,2752.5,2752.0,3.63359]
[1724472121461,3.0,2752.7,2751.7,3.63411]
[1724472121669,5.3347,2752.9,2752.3,3.63319]
[1724472122083,2.3347,2752.9,2752.4,3.63319]
[1724472122516,7.45,2753.2,2752.9,3.63243]
[1724472122720,7.45,2753.2,2752.5,2.754019]
[1724472123029,7.45,2753.2,2753.0,3.63238]
[1724472123342,2.3607,2753.5,2752.8,7.26508]
[1724472123520,5.99245,2753.5,2752.9,3.6325]
[1724472123718,7.699845,2753.5,2752.8,3.63253]
[1724472124241,7.699845,2753.5,2752.8,7.26508]
[1724472124409,7.699845,2753.5,2752.8,3.63253]
[1724472125010,7.699845,2753.5,2752.9,3.63251]
[1724472126891,5.99245,2753.5,2752.9,3.63251]
[1724472127534,2.3607,2753.5,2753.0,3.63239]
[1724472131441,2.3607,2753.5,2753.0,7.26471]
[1724472131656,0.026,2753.5,2753.0,2.3907]
[1724472131832,0.026,2753.5,2753.3,3.63192]
[1724472133807,0.026,2753.5,2753.3,7.26384]
[1724472134004,0.026,2753.5,2753.4,3.63187]
[1724472136435,0.026,2753.5,2753.2,3.63209]
[1724472136618,0.026,2753.5,2753.2,3.63204]
[1724472136821,0.026,2753.5,2753.3,0.442111]
[1724472137314,0.026,2753.5,2753.4,3.63187]
[1724472138613,0.026,2753.5,2753.4,7.26374]
[1724472140558,0.026,2753.5,2753.4,7.81374]
[1724472140752,0.026,2753.5,2753.4,10.09314]
[1724472141051,0.026,2753.5,2753.4,11.5098721]
[1724472145543,0.026,2753.5,2753.4,5.0486021]
[1724472148364,0.026,2753.5,2753.1,0.23907]
[1724472148365,2.2521,2753.4,2753.1,3.63224]
[1724472148856,2.2521,2753.4,2753.1,7.26437]
[1724472149209,2.2521,2753.4,2753.1,7.26436]
[1724472149851,2.2521,2753.4,2753.1,3.63218]
[1724472150318,2.2521,2753.4,2753.1,7.26436]
[1724472150518,2.2521,2753.4,2753.2,3.63213]
[1724472151059,2.25064728,2753.4,2753.3,3.632]
[1724472151220,2.25064728,2753.4,2753.1,7.26432]
[1724472152171,2.25064728,2753.4,2753.2,3.63212]
[1724472152931,0.026,2753.5,2753.4,3.63187]
[1724472154363,0.026,2753.5,2753.4,7.26374]
[1724472155628,0.026,2753.5,2753.4,7.81374]
[1724472161836,2.352,2753.5,2752.6,0.76137514]
[1724472162041,2.326,2753.2,2752.7,3.63269]
[1724472162268,2.326,2753.2,2752.6,0.76137514]
[1724472162269,5.95814,2753.2,2752.6,4.39417514]
[1724472163571,2.326,2753.2,2752.6,4.39417514]
[1724472164410,2.326,2753.2,2752.8,3.63255]
[1724472165607,2.326,2753.2,2752.8,7.26513]
[1724472165805,2.326,2753.2,2752.9,0.781513]
[1724472166377,2.326,2753.2,2752.6,4.39422514]
[1724472166817,5.95823,2753.2,2752.6,4.39422514]
[1724472167822,2.326,2753.2,2752.6,4.39422514]
[1724472167989,2.326,2753.2,2752.7,3.63279]
[1724472168579,5.95814,2753.2,2752.7,3.63279]
[1724472169485,5.95814,2753.2,2752.7,4.18641279]
[1724472170228,5.95814,2753.2,2752.7,0.55362279]
[1724472170229,3.63229,2753.1,2752.7,0.55362279]
[1724472170393,7.26467,2753.1,2752.6,0.76137514]
[1724472170596,2.326,2752.8,2752.6,0.76137514]
[1724472171291,3.6327,2752.8,2752.6,0.76137514]
[1724472171492,2.326,2752.7,2752.3,3.63329]
[1724472171731,2.326,2752.7,2752.3,7.629849]
[1724472171934,2.326,2752.7,2752.3,3.996559]
[1724472172141,2.326,2752.7,2752.5,3.63303]
[1724472174792,2.326,2752.9,2752.5,3.63296]
[1724472174992,11.08215,2753.2,2752.5,7.26592]
[1724472174993,13.40815,2753.2,2752.5,7.26592]
[1724472175223,13.40815,2753.2,2752.6,3.6329]
[1724472175431,17.04038,2753.2,2752.6,3.6329]
[1724472176537,3.63228,2753.1,2752.6,3.6329]
[1724472176723,13.40815,2753.2,2752.6,3.6329]
[1724472176928,17.04038,2753.2,2752.6,3.6329]
[1724472177226,3.63227,2753.1,2752.6,3.6329]
[1724472177812,13.40815,2753.2,2752.6,3.6329]
[1724472178046,17.04041,2753.2,2752.6,3.6329]
[1724472178542,13.40815,2753.2,2752.6,3.6329]
[1724472180351,17.0404,2753.2,2752.6,3.6329]
[1724472184448,13.40815,2753.2,2752.6,3.6329]
[1724472185737,15.412159,2753.2,2752.4,5.91154]
[1724472185936,2.2566,2752.7,2751.8,3.63394]
[1724472186109,3.633,2752.6,2751.9,3.63377]
[1724472186958,3.633,2752.6,2751.8,3.63394]
[1724472186959,3.633,2752.6,2752.0,3.63369]
[1724472187246,2.2566,2752.7,2752.2,3.63341]
[1724472188047,2.2566,2752.7,2752.2,3.63337]
[1724472188248,2.2566,2752.7,2752.4,3.63317]
[1724472189274,3.0,2752.9,2752.4,3.63317]
[1724472193875,3.63345,2752.3,2751.6,3.63422]
[1724472194081,3.63311,2752.5,2751.6,3.63422]
[1724472194246,3.63311,2752.5,2751.8,3.63395]
[1724472194438,3.0,2752.4,2751.8,3.63395]
[1724472194639,6.63321,2752.4,2751.8,3.997345]
[1724472195161,6.63321,2752.4,2751.8,7.631245]
[1724472195360,6.63321,2752.4,2751.8,3.997295]
[1724472195561,6.63321,2752.4,2751.8,7.631185]
[1724472195764,6.63321,2752.4,2751.8,3.997285]
[1724472195948,6.63321,2752.4,2751.9,0.3997285]
[1724472196152,3.0,2752.4,2751.9,4.0335685]
[1724472196336,3.0,2752.5,2751.9,4.0335685]
[1724472196537,6.63306,2752.5,2751.9,4.0335685]
[1724472196961,3.0,2752.5,2752.0,3.63363]
[1724472197268,5.3107,2752.6,2752.2,3.63344]
[1724472197467,5.3107,2752.6,2752.1,0.40333585]
[1724472197835,5.3107,2752.6,2752.1,4.03691585]
[1724472198033,3.0,2752.6,2752.2,3.63338]
[1724472198275,3.63287,2752.7,2752.1,0.40333585]
[1724472198431,3.0,2752.6,2752.2,0.55]
[1724472199642,9.00896,2752.6,2752.2,0.55]
[1724472200835,3.6331,2752.5,2751.7,2.4798]
[1724472201071,3.63339,2752.3,2751.8,0.611398]
[1724472202426,3.63339,2752.3,2751.8,4.245368]
[1724472203332,2.376,2752.2,2751.8,0.611398]
[1724472203502,2.376,2752.2,2751.6,3.63413]
[1724472203831,2.376,2752.2,2751.7,0.55]
[1724472204185,2.376,2752.2,2751.7,4.18409]
[1724472209841,2.376,2752.2,2751.8,7.26796]
[1724472210004,6.00912,2752.5,2751.8,3.63398]
[1724472210204,3.6332,2752.4,2751.8,8.049695]
[1724472210406,6.00912,2752.5,2752.0,3.63369]
[1724472210639,6.00912,2752.5,2751.9,2.4798]
[1724472210995,9.64227,2752.5,2751.9,2.4798]
[1724472211333,6.00912,2752.5,2751.9,6.11362]
[1724472211644,6.00912,2752.5,2752.0,1.0529315]
[1724472213205,6.00912,2752.5,2751.9,3.63382]
[1724472215626,6.00912,2752.5,2752.0,3.63369]
[1724472220796,2.376,2752.5,2752.3,3.6333]
[1724472220963,2.3878,2752.7,2752.3,3.6333]
[1724472222167,2.3878,2752.7,2752.1,7.26702]
[1724472222361,2.3878,2752.7,2752.2,4.910132]
[1724472222582,6.0206,2752.7,2752.2,4.910132]
[1724472222771,6.0206,2752.7,2752.2,4.18343]
[1724472222964,2.3878,2752.5,2752.0,3.63368]
[1724472223185,2.3878,2752.5,2752.1,0.55]
[1724472225366,2.3878,2752.5,2752.2,3.63344]
[1724472225572,2.3878,2752.7,2752.3,0.781699]
[1724472225772,2.3878,2752.7,2752.2,3.63344]
[1724472225974,6.02067,2752.7,2752.2,3.63344]
[1724472226507,3.63293,2752.6,2752.1,0.55]
[1724472227410,3.63293,2752.6,2752.1,4.18357]
[1724472230301,2.3878,2752.7,2752.3,3.63332]
[1724472230475,2.3878,2752.7,2752.3,3.63325]
[1724472231880,2.3878,2752.7,2752.3,4.414926]
[1724472232216,2.3878,2752.7,2752.1,7.81702]
[1724472232617,6.02063,2752.7,2752.1,4.18351]
[1724472232972,9.65352,2752.7,2752.1,4.18351]
[1724472233277,3.63327,2752.4,2751.8,0.781815]
[1724472233610,3.63327,2752.4,2751.8,7.26782]
[1724472233770,2.3878,2752.6,2751.8,7.26782]
[1724472233771,6.02084,2752.6,2751.9,3.63383]
[1724472233971,3.63307,2752.5,2751.9,3.63383]
[1724472234187,2.3878,2752.6,2752.1,3.63356]
[1724472234875,2.3878,2752.6,2752.2,3.63337]
[1724472235261,2.3878,2752.6,2752.2,4.360063]
[1724472235573,2.3878,2752.6,2752.2,3.59193238]
[1724472240950,2.3878,2752.6,2752.1,3.6335]
[1724472245824,6.02073,2752.6,2752.1,3.6335]
[1724472246957,2.3878,2752.6,2752.1,3.6335]
[1724472247110,2.3878,2752.6,2752.1,7.26701]
[1724472247311,3.63279,2752.7,2752.2,3.63345]
[1724472247540,4.29895244,2752.7,2752.1,5.935]
[1724472247737,4.29895244,2752.7,2752.1,3.6335]
[1724472249813,4.29895244,2752.7,2752.1,7.267]
[1724472250014,4.29895244,2752.7,2752.1,3.6335]
[1724472250425,0.66616244,2752.7,2752.3,3.63332]
[1724472250757,2.3489,2752.8,2752.5,3.633]
[1724472251056,2.3489,2752.8,2752.3,5.93471]
[1724472251260,2.3489,2752.8,2752.4,3.63316]
[1724472251752,2.3489,2752.8,2752.3,5.93471]
[1724472252112,5.98157,2752.8,2752.3,3.63321]
[1724472252317,1.343157,2752.7,2752.3,3.63321]
[1724472253317,5.98157,2752.8,2752.3,3.63321]
[1724472253628,5.98157,2752.8,2752.3,3.63223782]
[1724472254808,2.3489,2752.8,2752.3,3.63223782]
[1724472256452,5.98156,2752.8,2752.3,3.63223782]
[1724472262566,2.3489,2752.8,2752.4,3.63318]
[1724472262720,2.3489,2752.8,2752.3,3.63223782]
[1724472269018,5.91228547,2753.0,2752.4,2.468]
[1724472269233,7.45,2753.2,2752.7,3.6327]
[1724472269449,11.08222,2753.2,2752.7,3.6327]
[1724472269593,3.63222,2753.2,2752.5,7.81594]
[1724472269792,3.63222,2753.2,2752.5,5.28400148]
[1724472269996,3.63222,2753.2,2752.6,3.63292]
[1724472270198,2.2646,2753.3,2752.7,0.55]
[1724472270473,2.2646,2753.3,2752.5,5.28404148]
[1724472270624,5.2646,2753.3,2752.6,0.77520415]
[1724472270938,5.2646,2753.3,2752.7,0.55]
[1724472271508,5.2646,2753.3,2752.7,3.63268]
[1724472271835,5.2646,2753.3,2752.8,4.18258]
[1724472272549,21.9506,2753.5,2753.0,3.63232]
[1724472272831,21.9506,2753.5,2753.1,3.63225]
[1724472273042,21.9506,2753.5,2752.9,7.26485]
[1724472273339,21.9506,2753.5,2753.0,0.55]
[1724472273747,21.9506,2753.5,2753.0,4.18237]
[1724472274513,25.58234,2753.5,2753.0,0.55]
[1724472275019,5.92234,2753.5,2753.0,0.55]
[1724472276393,2.2646,2753.2,2752.7,3.63272]
[1724472276598,2.2646,2753.2,2752.8,0.55]
[1724472276812,2.2646,2753.2,2752.5,3.63302]
[1724472277017,2.2646,2752.8,2752.3,4.35981478]
[1724472277758,2.2646,2752.8,2752.3,7.99305478]
[1724472277960,2.2646,2752.8,2752.4,3.63318]
[1724472279116,2.2646,2752.8,2752.3,0.72657478]
[1724472279475,5.89727,2752.8,2752.3,4.35979478]
[1724472279648,2.2646,2752.8,2752.3,4.35979478]
[1724472279850,2.2646,2752.8,2752.4,3.63319]
[1724472280016,2.2646,2752.8,2752.4,4.43248848]
[1724472281901,2.2646,2752.8,2752.5,3.63304]
[1724472282375,2.2646,2752.8,2752.4,0.79929848]
[1724472282901,2.2646,2752.8,2752.3,3.63322]
[1724472284994,2.2646,2752.8,2752.3,7.26646]
[1724472285208,2.2646,2752.8,2752.3,3.63322]
[1724472289331,2.2646,2752.8,2752.3,7.26644]
[1724472289906,2.2646,2752.8,2752.3,3.63322]
[1724472290280,2.2646,2752.8,2752.4,0.363322]
[1724472292414,2.2646,2752.8,2752.5,3.63304]
[1724472293315,2.2646,2752.8,2752.4,0.363322]
[1724472294205,2.2646,2752.8,2752.3,3.63321]
[1724472294409,2.2646,2752.8,2752.3,7.26644]
[1724472294603,2.2646,2752.8,2752.3,3.63321]
[1724472294806,2.2646,2752.8,2752.3,7.26645]
[1724472295375,2.2646,2752.8,2752.4,3.63318]
[1724472295571,5.89728,2752.8,2752.3,3.63321]
[1724472295776,2.4813,2752.4,2751.9,3.63375]
[1724472295993,2.4813,2752.4,2752.0,0.55]
[1724472296418,3.63333,2752.3,2751.8,3.63396]
[1724472296721,6.11451,2752.4,2751.8,4.360764]
[1724472297923,2.4813,2752.4,2751.9,4.18383]
[1724472298496,2.4813,2752.4,2751.9,4.18377]
[1724472299082,2.4813,2752.4,2751.9,4.18375]
[1724472300930,2.4813,2752.4,2751.9,7.81752]